bitfinex/quotes_ETHUSD_20250815
["timestamp","ask_amount","ask_price","bid_price","bid_amount"]
[1755244291235,3.295,4635.5,4635.0,0.17060001]
[1755244291530,3.295,4635.5,4635.0,1e-08]
[1755244291728,3.295,4635.5,4635.4,0.108]
[1755244292503,0.002,4635.6,4635.4,0.108]
[1755244292736,3.295,4635.5,4635.4,0.108]
[1755244293408,3.295,4635.5,4635.4,0.2786]
[1755244294140,3.295,4635.5,4635.4,0.108]
[1755244294305,0.002,4635.6,4635.4,0.108]
[1755244294499,0.002,4635.6,4635.5,2.34943722]
[1755244294716,0.002,4635.6,4635.5,2.81091431]
[1755244294937,0.002,4635.6,4635.5,2.78934167]
[1755244295155,0.002,4635.6,4635.5,0.46147709]
[1755244295325,0.002,4635.6,4635.4,0.108]
[1755244295526,0.002,4635.6,4635.5,2.32786458]
[1755244296051,0.002,4635.6,4635.5,2.15726458]
[1755244298858,0.002,4635.6,4635.4,0.108]
[1755244299361,4.2223,4635.5,4635.4,0.108]
[1755244299929,7.24246281,4635.5,4635.4,0.108]
[1755244300124,9.37956458,4635.5,4635.4,0.108]
[1755244300329,2.15740636,4635.2,4635.0,1e-08]
[1755244300552,8.47161356,4635.1,4635.0,0.10800001]
[1755244300751,9.37875075,4635.1,4635.0,0.10800001]
[1755244301462,7.2213,4635.1,4635.0,0.10800001]
[1755244301638,3.0,4635.1,4635.0,0.10800001]
[1755244302043,3.294,4635.1,4635.0,0.10800001]
[1755244302664,0.9273,4635.1,4635.0,0.10800001]
[1755244302863,4.2213,4635.1,4635.0,0.10800001]
[1755244303566,4.2213,4635.1,4635.0,1e-08]
[1755244303567,9.37875075,4635.1,4635.0,1e-08]
[1755244303766,9.48675075,4635.1,4635.0,1e-08]
[1755244303970,23.04111482,4635.1,4635.0,1e-08]
[1755244304764,9.48675075,4635.1,4635.0,1e-08]
[1755244305896,9.48875075,4635.1,4635.0,1e-08]
[1755244306480,6.19475075,4635.1,4635.0,1e-08]
[1755244306666,9.48975075,4635.1,4635.0,1e-08]
[1755244311466,13.16588775,4635.1,4635.0,1e-08]
[1755244311667,16.46088775,4635.1,4635.0,1e-08]
[1755244311867,9.48975075,4635.1,4635.0,1e-08]
[1755244312475,16.46088775,4635.1,4635.0,1e-08]
[1755244312887,16.46088775,4635.1,4632.3,0.1706]
[1755244312888,2.15838207,4633.1,4632.3,0.1706]
[1755244313190,2.15852184,4632.8,4632.7,0.108]
[1755244313360,2.15875483,4632.3,4632.2,0.499]
[1755244313564,6.303,4632.3,4632.2,0.607]
[1755244315177,3.0,4632.3,4632.2,0.607]
[1755244315518,3.0,4632.3,4632.2,0.557]
[1755244315811,6.303,4632.3,4632.2,0.7276]
[1755244316274,6.302,4632.3,4632.2,0.7276]
[1755244316664,6.302,4632.3,4632.2,0.557]
[1755244318273,3.0,4632.3,4632.2,0.557]
[1755244318702,6.304,4632.3,4632.2,0.557]
[1755244318909,6.304,4632.3,4632.2,0.449]
[1755244319204,3.0,4632.3,4632.2,0.449]
[1755244319387,8.46475483,4632.3,4632.2,0.449]
[1755244319566,3.0,4632.3,4632.2,0.449]
[1755244319762,6.306,4632.3,4632.2,0.449]
[1755244320264,3.0,4632.3,4632.2,0.449]
[1755244320491,2.15815704,4633.6,4632.2,0.449]
[1755244320767,2.15828995,4633.3,4632.3,0.1706]
[1755244321085,3.0,4633.6,4632.3,0.1706]
[1755244321297,2.15824232,4633.4,4632.3,2.32935094]
[1755244321482,5.15824232,4633.4,4632.4,0.27783509]
[1755244321676,3.308,4633.3,4632.4,0.27783509]
[1755244321876,5.46630795,4633.3,4632.4,0.27783509]
[1755244322105,3.308,4633.3,4632.4,0.27783509]
[1755244322273,5.15824404,4633.4,4632.4,0.27783509]
[1755244322274,3.307,4633.2,4632.5,2.1586615]
[1755244322477,3.0,4633.1,4632.5,0.54307581]
[1755244322707,3.307,4633.0,4632.5,0.54307581]
[1755244322905,3.307,4632.9,4632.6,2.32921503]
[1755244323107,3.307,4633.2,4632.3,0.55]
[1755244323309,3.32716281,4633.2,4632.3,2.15871437]
[1755244323697,3.307,4633.2,4632.4,2.15870731]
[1755244323900,3.307,4633.2,4632.4,2.63542793]
[1755244324111,2.15844025,4633.0,4632.4,0.47675472]
[1755244324315,3.02016281,4633.1,4632.2,0.449]
[1755244324316,3.0,4632.8,4632.2,0.449]
[1755244324484,2.15875483,4632.3,4632.2,0.449]
[1755244324681,9.36655483,4632.3,4632.2,0.449]
[1755244325486,6.308,4632.3,4632.2,0.449]
[1755244325809,3.0,4632.3,4632.2,0.449]
[1755244326011,6.31,4632.3,4632.2,0.449]
[1755244326782,9.36855483,4632.3,4632.2,0.449]
[1755244331322,8.46575483,4632.3,4632.2,0.449]
[1755244333496,9.36555483,4632.3,4632.2,0.449]
[1755244333708,3.0,4632.3,4632.2,0.449]
[1755244334028,9.36455483,4632.3,4632.2,0.449]
[1755244334195,8.46475483,4632.3,4632.2,0.449]
[1755244335112,9.36455483,4632.3,4632.2,0.449]
[1755244335943,6.306,4632.3,4632.2,0.449]
[1755244336115,8.46475483,4632.3,4632.2,0.449]
[1755244336306,9.36455483,4632.3,4632.2,0.449]
[1755244336909,8.46475483,4632.3,4632.2,0.449]
[1755244337107,6.306,4632.3,4632.2,0.449]
[1755244337643,3.0,4632.3,4632.2,0.449]
[1755244338008,6.304,4632.3,4632.2,0.449]
[1755244338337,3.0,4632.3,4632.2,0.449]
[1755244338638,6.304,4632.3,4632.2,0.449]
[1755244338826,6.304,4632.3,4632.2,0.73775302]
[1755244339620,6.306,4632.3,4632.2,0.73775302]
[1755244339801,6.306,4632.3,4632.2,0.449]
[1755244340907,3.002,4632.3,4632.2,0.449]
[1755244341111,6.305,4632.3,4632.2,0.449]
[1755244341733,6.305,4632.3,4632.2,3.51755124]
[1755244342403,3.002,4632.3,4632.2,3.51755124]
[1755244342709,0.002,4632.3,4632.2,6.99708839]
[1755244342909,0.002,4632.3,4632.2,6.97550038]
[1755244346043,0.002,4632.3,4632.2,3.90694914]
[1755244347948,0.002,4632.3,4632.2,3.92853715]
[1755244348136,0.002,4632.3,4632.2,3.90694914]
[1755244349239,0.002,4633.3,4632.8,0.55]
[1755244349420,0.002,4633.3,4633.2,2.70833549]
[1755244349757,0.002,4633.3,4633.2,3.65695373]
[1755244349934,0.002,4633.3,4633.2,3.80597038]
[1755244350249,0.002,4633.3,4633.2,3.63537038]
[1755244354774,0.002,4633.3,4633.2,6.95895373]
[1755244355010,0.002,4633.3,4633.2,7.10797038]
[1755244355328,0.002,4633.7,4633.6,2.70814917]
[1755244355567,0.002,4633.7,4633.6,6.51836712]
[1755244355729,0.002,4633.7,4633.6,6.77538563]
[1755244356457,0.002,4633.7,4633.6,6.60478563]
[1755244357929,0.002,4633.7,4633.6,3.30278563]
[1755244358128,0.9128,4633.7,4633.6,3.30278563]
[1755244359864,0.002,4633.7,4633.6,3.30278563]
[1755244360237,0.002,4633.7,4633.6,6.37133687]
[1755244360564,0.002,4633.7,4633.6,9.67233687]
[1755244365497,0.002,4633.7,4633.6,16.82233687]
[1755244366484,0.002,4633.7,4633.6,13.52133687]
[1755244366886,0.9128,4633.7,4633.6,13.52133687]
[1755244367085,0.9128,4633.7,4633.6,16.82333687]
[1755244367386,0.002,4633.7,4633.6,16.82333687]
[1755244370100,0.9128,4633.7,4633.6,9.67333687]
[1755244372788,0.002,4633.7,4633.6,9.67333687]
[1755244382641,0.9399,4634.9,4634.6,2.70768209]
[1755244382855,0.002,4635.1,4635.0,0.108]
[1755244383009,0.002,4635.1,4635.0,9.20062351]
[1755244383210,0.002,4635.1,4635.0,9.17904854]
[1755244386046,1e-08,4635.1,4635.0,9.34964854]
[1755244386343,1e-08,4635.1,4635.0,11.55411258]
[1755244387830,1e-08,4635.1,4635.0,11.38351258]
[1755244389251,1e-08,4635.1,4635.0,8.08651258]
[1755244389413,1e-08,4635.1,4635.0,5.33204854]
[1755244389414,0.93990001,4635.1,4635.0,5.33204854]
[1755244390647,0.93990001,4635.1,4635.0,5.88204854]
[1755244391728,1e-08,4635.1,4635.0,5.88204854]
[1755244399570,0.93990001,4635.1,4635.0,5.88204854]
[1755244399766,0.93990001,4635.1,4635.0,7.01581243]
[1755244400736,0.93990001,4635.1,4635.0,10.31181243]
[1755244400934,0.93990001,4635.1,4635.0,8.62804854]
[1755244401166,0.93990001,4635.1,4635.0,9.17804854]
[1755244401874,1e-08,4635.1,4635.0,9.17804854]
[1755244403682,0.002,4635.6,4635.3,3.06655123]
[1755244403886,0.002,4635.6,4635.5,2.70726458]
[1755244404051,0.002,4635.6,4635.5,2.81526458]
[1755244404255,0.002,4635.6,4635.5,3.94888177]
[1755244404648,0.002,4635.6,4635.5,3.97045441]
[1755244405174,0.002,4635.6,4635.5,3.94888177]
[1755244405769,0.8855,4635.6,4635.5,3.94888177]
[1755244407368,0.002,4635.6,4635.5,3.94888177]
[1755244407584,0.002,4635.6,4635.5,3.97045441]
[1755244407990,0.002,4635.6,4635.5,3.94888177]
[1755244408597,0.002,4635.6,4635.5,3.97045441]
[1755244408752,0.002,4635.6,4635.5,3.94888177]
[1755244409296,0.002,4637.0,4635.5,3.94888177]
[1755244409297,0.002,4637.7,4637.5,0.55]
[1755244409456,0.002,4637.7,4637.6,7.90348867]
[1755244409663,0.002,4637.7,4637.6,11.0525258]
[1755244409857,0.002,4637.7,4637.6,10.8859258]
[1755244410103,1e-08,4638.1,4638.0,2.70610176]
[1755244410308,1e-08,4638.1,4638.0,6.13110176]
[1755244410521,1e-08,4638.1,4638.0,6.95982676]
[1755244410685,1e-08,4638.1,4638.0,2.81410176]
[1755244411030,0.88350001,4638.1,4638.0,2.81410176]
[1755244412179,0.88350001,4638.1,4638.0,6.13310176]
[1755244412690,1e-08,4638.1,4638.0,6.13310176]
[1755244412886,1e-08,4638.1,4638.0,6.96202996]
[1755244414805,1e-08,4638.1,4638.0,3.64302996]
[1755244415007,0.45520001,4638.1,4638.0,6.96202996]
[1755244415225,0.88350001,4638.1,4638.0,6.96202996]
[1755244416423,1e-08,4638.1,4638.0,6.96202996]
[1755244417196,0.42830001,4638.1,4638.0,6.96202996]
[1755244417429,0.88350001,4638.1,4638.0,6.96202996]
[1755244419499,1e-08,4638.1,4638.0,6.96202996]
[1755244420602,1e-08,4638.2,4638.1,2.70605528]
[1755244420801,1e-08,4638.2,4638.1,3.63943685]
[1755244421633,1e-08,4638.2,4638.1,3.6178763]
[1755244422706,1e-08,4638.2,4638.1,3.7258763]
[1755244423302,1e-08,4638.2,4638.1,3.8122023]
[1755244424029,0.002,4638.6,4638.5,2.70586935]
[1755244424230,2.15486442,4640.7,4639.0,0.55]
[1755244424460,2.15486442,4640.7,4638.9,3.06255123]
[1755244424461,2.15502411,4640.4,4639.4,0.55]
[1755244424606,2.15502411,4640.4,4639.5,0.658]
[1755244425348,0.4303,4639.6,4639.5,0.658]
[1755244425558,0.8855,4639.6,4639.5,2.81340467]
[1755244427044,0.8855,4639.6,4639.5,0.658]
[1755244428631,0.8855,4639.6,4639.5,2.81340467]
[1755244429760,0.8855,4639.6,4639.5,6.12440467]
[1755244430930,0.8855,4639.6,4639.5,3.969]
[1755244431571,0.8855,4639.6,4639.5,6.12440467]
[1755244431778,0.8855,4639.6,4639.5,2.81340467]
[1755244431939,0.8855,4639.6,4639.5,5.8759559]
[1755244434070,0.8855,4639.6,4639.5,0.108]
[1755244437672,0.002,4639.6,4639.5,2.26340467]
[1755244437873,0.002,4639.6,4639.5,2.81340467]
[1755244438030,0.002,4639.6,4639.5,0.658]
[1755244438372,0.002,4639.6,4639.5,2.81340467]
[1755244439269,0.002,4639.6,4639.5,0.658]
[1755244440058,0.4466,4639.6,4639.5,0.658]
[1755244440281,0.9146,4639.6,4639.5,0.108]
[1755244440667,5.15540467,4639.5,4638.8,0.001]
[1755244440998,5.15540467,4639.5,4639.0,0.108]
[1755244440999,2.15559052,4639.1,4639.0,0.108]
[1755244441160,8.46545075,4639.5,4639.0,0.108]
[1755244441358,3.9126,4639.4,4639.0,0.108]
[1755244441578,6.06806493,4639.4,4639.0,0.108]
[1755244441797,6.06813364,4639.3,4639.0,0.108]
[1755244441994,0.4446,4639.3,4639.0,0.108]
[1755244442197,0.002,4639.6,4639.2,0.55]
[1755244442371,0.002,4639.6,4639.5,0.55]
[1755244442694,0.002,4639.6,4639.5,2.81340467]
[1755244443277,0.002,4639.6,4639.5,0.658]
[1755244443962,0.002,4639.6,4639.5,2.81340467]
[1755244444267,0.002,4639.6,4639.5,3.31029871]
[1755244444473,0.4466,4639.6,4639.5,0.658]
[1755244445679,0.4466,4639.6,4639.5,2.81340467]
[1755244446179,0.4466,4639.6,4639.5,0.658]
[1755244446506,0.002,4639.6,4639.5,0.658]
[1755244446795,0.47,4639.6,4639.5,0.108]
[1755244446987,0.9146,4639.6,4639.5,0.108]
[1755244447186,3.9146,4639.6,4639.5,0.108]
[1755244447370,5.15541023,4639.5,4638.8,0.001]
[1755244447571,0.02016281,4639.4,4638.8,0.001]
[1755244447778,0.9126,4639.4,4639.0,0.108]
[1755244448110,0.9126,4639.3,4639.0,0.108]
[1755244448291,2.15559052,4639.1,4639.0,0.108]
[1755244448608,5.15559052,4639.1,4639.0,0.108]
[1755244449104,6.06819052,4639.1,4639.0,0.108]
[1755244451297,2.15568345,4638.9,4638.8,0.001]
[1755244451518,2.17584626,4638.9,4638.8,0.001]
[1755244451703,3.08844626,4638.9,4638.8,0.001]
[1755244453205,2.62044626,4638.9,4638.8,0.001]
[1755244453486,6.38128345,4638.9,4638.8,0.001]
[1755244453681,3.06828345,4638.9,4638.8,0.001]
[1755244453883,2.60028345,4638.9,4638.8,0.001]
[1755244454087,5.91328345,4638.9,4638.8,0.001]
[1755244455793,2.60028345,4638.9,4638.8,0.001]
[1755244455994,5.91228345,4638.9,4638.8,0.001]
[1755244460144,6.38028345,4638.9,4638.8,0.001]
[1755244461706,5.91228345,4638.9,4638.8,0.001]
[1755244465046,6.38818345,4638.9,4638.8,0.001]
[1755244465207,9.38818345,4638.9,4638.8,0.001]
[1755244465417,9.49618345,4638.9,4638.8,0.001]
[1755244466158,6.18418345,4638.9,4638.8,0.001]
[1755244466336,9.49318345,4638.9,4638.8,0.001]
[1755244466526,6.18418345,4638.9,4638.8,0.001]
[1755244466851,9.49418345,4638.9,4638.8,0.001]
[1755244467438,9.49318345,4638.9,4638.8,0.001]
[1755244483083,8.57268345,4638.9,4638.8,0.001]
[1755244483243,8.56568345,4638.9,4638.8,0.4748]
[1755244483427,8.45768345,4638.9,4638.8,0.9342]
[1755244484069,8.45768345,4638.9,4638.8,0.4748]
[1755244484468,8.45768345,4638.9,4638.8,0.001]
[1755244485435,8.56568345,4638.9,4638.8,0.001]
[1755244489872,9.00678345,4638.9,4638.8,0.001]
[1755244490179,9.48268345,4638.9,4638.8,0.001]
[1755244490792,9.48268345,4638.9,4638.8,1e-08]
[1755244490992,9.94410169,4638.9,4638.8,1e-08]
[1755244491159,10.03048669,4638.9,4638.8,1e-08]
[1755244491560,6.72848669,4638.9,4638.8,1e-08]
[1755244491761,10.03248669,4638.9,4638.8,1e-08]
[1755244491964,9.94610169,4638.9,4638.8,1e-08]
[1755244492264,6.64210169,4638.9,4638.8,1e-08]
[1755244492465,9.94610169,4638.9,4638.8,1e-08]
[1755244495099,2.15628773,4637.6,4637.5,0.45110001]
[1755244495270,8.46028773,4637.6,4637.5,0.45110001]
[1755244495867,6.304,4637.6,4637.5,0.45110001]
[1755244496194,8.46028773,4637.6,4637.5,0.45110001]
[1755244497603,6.304,4637.6,4637.5,0.45110001]
[1755244497769,8.46028773,4637.6,4637.5,0.45110001]
[1755244498801,8.46028773,4637.6,4637.4,0.109]
[1755244499873,2.15633423,4637.5,4637.4,0.109]
[1755244500204,8.46029613,4637.6,4637.4,0.109]
[1755244500367,2.15633423,4637.5,4637.4,0.109]
[1755244500985,2.17649704,4637.5,4637.4,0.109]
[1755244501203,2.17649704,4637.5,4637.4,0.001]
[1755244501505,2.15633423,4637.5,4637.4,0.001]
[1755244504227,3.0,4637.6,4637.4,0.001]
[1755244504391,3.0,4637.6,4637.4,1.0561]
[1755244504576,3.0,4637.6,4637.4,0.109]
[1755244504906,3.0,4637.6,4637.5,0.9471]
[1755244505613,3.3,4637.7,4637.5,0.9471]
[1755244505918,2.15586051,4638.6,4637.6,0.55]
[1755244506210,3.0,4638.4,4637.8,0.55]
[1755244506371,3.0,4638.2,4637.9,0.4693]
[1755244506576,3.301,4638.3,4637.9,0.4693]
[1755244506577,5.15610176,4638.0,4637.9,0.4778]
[1755244506978,5.15610176,4638.0,4637.9,0.5858]
[1755244507192,5.15610176,4638.0,4637.9,1.0551]
[1755244507476,3.0,4638.0,4637.9,1.0551]
[1755244507679,3.0,4638.0,4637.9,0.5773]
[1755244510824,3.0,4638.0,4637.9,1.0551]
[1755244511584,3.0,4638.0,4637.9,0.5773]
[1755244512615,3.299,4638.0,4637.9,0.5773]
[1755244512820,6.299,4638.0,4637.9,1.0551]
[1755244513313,6.299,4638.0,4637.9,0.5773]
[1755244514820,6.299,4638.0,4637.9,0.108]
[1755244515327,0.002,4639.0,4638.0,0.55]
[1755244515511,0.002,4639.0,4637.6,13.5831147]
[1755244515512,0.002,4639.0,4638.9,0.108]
[1755244515689,0.002,4639.0,4638.9,0.658]
[1755244515886,3.301,4639.0,4638.9,0.108]
[1755244516134,3.0,4638.9,4637.6,0.55]
[1755244516301,3.0,4638.7,4638.4,0.108]
[1755244516498,3.32116281,4638.6,4638.4,0.108]
[1755244516833,6.11156935,4638.5,4638.4,0.108]
[1755244517000,3.9557,4638.5,4637.9,0.108]
[1755244517189,2.15614159,4638.0,4637.9,0.108]
[1755244517388,8.4773044,4638.0,4637.9,0.108]
[1755244517738,9.41284159,4638.0,4637.9,0.108]
[1755244518026,6.301,4638.0,4637.9,0.108]
[1755244520008,6.301,4638.0,4637.5,0.4693]
[1755244520009,3.0,4637.9,4637.5,0.4693]
[1755244520325,2.15600246,4638.3,4637.5,0.73207207]
[1755244520326,3.301,4637.8,4637.5,0.73207207]
[1755244520536,2.15606205,4638.1,4637.5,0.4693]
[1755244520537,3.301,4637.7,4637.5,0.4693]
[1755244521035,3.301,4637.7,4637.6,0.108]
[1755244521934,3.0,4638.0,4637.6,0.108]
[1755244522154,3.0,4638.0,4637.6,1.0135]
[1755244522311,3.301,4638.1,4637.7,0.4497]
[1755244522514,3.301,4638.1,4637.9,0.108]
[1755244522704,5.179,4640.0,4638.0,0.55]
[1755244522705,0.108,4639.1,4638.0,0.55]
[1755244523035,5.179,4640.0,4638.2,0.55]
[1755244523036,3.3,4638.8,4638.2,0.55]
[1755244523257,3.0,4638.7,4638.2,0.55]
[1755244523732,2.1556871,4638.9,4638.2,0.55]
[1755244523926,3.0,4638.7,4638.2,0.55]
[1755244524109,3.0,4638.5,4638.2,0.55]
[1755244524342,3.3,4638.4,4638.2,1.33615599]
[1755244524506,3.3,4638.5,4638.4,0.108]
[1755244525409,6.3,4638.5,4638.4,0.108]
[1755244525607,7.2141,4638.5,4638.4,0.108]
[1755244525910,9.36996935,4638.5,4638.4,0.108]
[1755244526842,7.2141,4638.5,4638.4,0.108]
[1755244529739,3.9141,4638.5,4638.4,0.108]
[1755244529939,7.2121,4638.5,4638.4,0.108]
[1755244530312,3.9141,4638.5,4638.4,0.108]
[1755244530642,7.2121,4638.5,4638.4,0.108]
[1755244531152,3.0,4638.5,4638.2,4.6997]
[1755244531359,3.0,4638.5,4638.4,0.108]
[1755244531939,3.0,4638.5,4638.4,0.5577]
[1755244532423,3.0,4638.5,4638.4,0.108]
[1755244533532,3.93426281,4638.5,4638.4,0.108]
[1755244533921,3.0,4638.5,4638.4,4.358]
[1755244534441,2.15568736,4638.9,4638.4,4.358]
[1755244534633,3.0,4638.7,4638.4,4.358]
[1755244534835,3.0,4638.5,4638.4,4.358]
[1755244536060,3.298,4638.5,4638.4,4.358]
[1755244536833,6.298,4638.5,4638.4,4.358]
[1755244538728,0.002,4639.0,4638.5,0.55]
[1755244538926,0.002,4639.0,4638.9,2.70568345]
[1755244539158,0.002,4639.0,4638.9,2.81368345]
[1755244539356,0.002,4639.0,4638.9,7.51338345]
[1755244539532,0.002,4639.0,4638.9,8.81009679]
[1755244540050,0.002,4639.0,4638.9,12.10809679]
[1755244540253,0.002,4639.0,4638.9,11.65839679]
[1755244540652,0.002,4639.0,4638.9,12.10809679]
[1755244540855,0.002,4639.0,4638.9,12.56389679]
[1755244541170,0.002,4639.0,4638.9,12.10809679]
[1755244541867,0.002,4639.0,4638.9,12.56389679]
[1755244542066,0.002,4639.0,4638.9,12.10809679]
[1755244542436,0.002,4639.0,4638.9,12.56389679]
[1755244544878,0.002,4639.0,4638.9,11.65839679]
[1755244545862,0.002,4639.0,4638.9,8.36039679]
[1755244546062,0.002,4639.0,4638.9,11.65739679]
[1755244546285,0.002,4639.0,4638.9,9.50171334]
[1755244546591,0.9161,4639.0,4638.9,9.50171334]
[1755244547063,0.002,4639.0,4638.9,11.65739679]
[1755244548178,0.002,4639.0,4638.9,12.56289679]
[1755244548783,0.002,4639.0,4638.9,8.31289679]
[1755244549162,0.002,4639.0,4638.9,21.87444862]
[1755244549163,1e-08,4639.0,4638.9,21.87444862]
[1755244549654,1e-08,4639.0,4638.9,24.87444862]
[1755244551074,0.002,4640.4,4639.6,0.55]
[1755244551263,0.002,4640.4,4639.5,2.70540467]
[1755244551264,0.002,4640.4,4639.9,2.81321886]
[1755244551469,0.002,4640.4,4639.9,19.67177069]
[1755244551652,0.002,4640.4,4639.9,7.01571886]
[1755244552284,0.002,4640.4,4639.9,6.55991886]
[1755244552587,0.002,4640.4,4639.9,7.46399597]
[1755244552783,0.002,4640.4,4639.9,8.09303625]
[1755244553990,0.002,4640.4,4640.0,2.70517241]
[1755244554201,0.002,4640.4,4640.0,3.63642413]
[1755244554486,0.002,4640.4,4640.0,3.74442413]
[1755244554783,0.002,4640.4,4640.0,5.92733645]
[1755244555502,0.002,4640.4,4640.0,5.46033645]
[1755244556197,0.002,4640.4,4640.0,3.25587241]
[1755244556370,0.002,4640.4,4640.0,2.81317241]
[1755244557196,0.002,4640.4,4640.0,3.25587241]
[1755244559598,0.002,4640.4,4640.0,2.81317241]
[1755244560598,0.002,4640.4,4640.0,6.10917241]
[1755244560798,0.002,4640.4,4640.0,7.07477732]
[1755244563694,0.002,4640.4,4640.0,7.98447732]
[1755244564133,0.002,4640.4,4640.0,7.07477732]
[1755244564134,1e-08,4640.1,4640.0,7.07477732]
[1755244564299,0.8978,4641.9,4641.0,2.70470803]
[1755244564637,0.8978,4641.9,4641.0,10.73265891]
[1755244564798,0.8978,4641.9,4641.0,11.28335891]
[1755244564999,0.4437,4641.6,4641.0,6.59465892]
[1755244565296,0.108,4643.2,4641.0,6.59465892]
[1755244565297,0.8978,4641.4,4641.0,6.59465892]
[1755244566328,0.4541,4642.3,4641.0,6.59465892]
[1755244566627,0.4437,4642.1,4641.0,7.03735892]
[1755244567632,0.8978,4641.9,4641.0,6.59465892]
[1755244568828,0.4437,4641.7,4641.0,6.59465892]
[1755244569005,0.8978,4642.3,4641.0,6.59465892]
[1755244569206,0.4437,4642.4,4641.0,6.92935892]
[1755244569431,0.4541,4642.3,4641.0,7.50435892]
[1755244569634,3.02016281,4643.6,4641.0,7.50435892]
[1755244569635,0.8978,4641.9,4641.0,6.59465892]
[1755244569801,3.0,4643.2,4641.0,3.29865892]
[1755244569802,0.8978,4641.6,4641.0,3.29865892]
[1755244570002,0.8978,4641.3,4641.0,6.59465892]
[1755244570301,0.4541,4641.3,4641.0,6.59465892]
[1755244571228,0.4437,4641.4,4641.0,6.59465892]
[1755244572729,0.4437,4641.9,4641.0,6.59465892]
[1755244575638,0.4541,4641.8,4641.0,6.59465892]
[1755244575839,0.4437,4641.7,4641.0,6.59465892]
[1755244576734,0.4457,4641.5,4641.0,6.59465892]
[1755244580725,0.002,4641.5,4641.0,6.59465892]
[1755244581421,0.8978,4641.9,4641.0,6.59465892]
[1755244581422,0.8978,4641.9,4641.6,0.55]
[1755244581628,0.002,4642.1,4641.9,0.55]
[1755244581943,0.002,4642.1,4642.0,10.24124385]
[1755244582243,0.002,4642.1,4642.0,6.94624385]
[1755244582815,0.9041,4642.1,4642.0,6.94624385]
[1755244587023,0.9041,4642.1,4640.5,14.45245183]
[1755244587024,0.9041,4642.1,4641.1,4.24199999]
[1755244587224,6.05638509,4642.0,4641.1,6.39665869]
[1755244587425,0.9021,4641.9,4641.1,6.39665869]
[1755244587734,3.9021,4641.8,4640.9,3.295]
[1755244587938,2.15438896,4641.7,4640.9,7.53699999]
[1755244588139,0.9021,4641.7,4640.9,2.70475446]
[1755244588337,0.9021,4641.6,4640.9,2.70474285]
[1755244588523,2.15424559,4642.0,4640.9,2.70474285]
[1755244588524,0.9021,4641.5,4640.9,2.70474285]
[1755244588729,0.9021,4641.4,4640.9,2.70474285]
[1755244588929,0.9021,4641.3,4640.9,2.70474285]
[1755244589128,0.9021,4641.2,4640.9,2.70474285]
[1755244589325,0.9021,4641.1,4640.9,0.55]
[1755244589530,0.9021,4641.0,4640.9,0.55]
[1755244590320,3.0568133,4641.0,4640.6,4.24199999]
[1755244590559,0.9021,4640.9,4640.6,4.24199999]
[1755244590966,0.9021,4640.8,4640.6,4.24199999]
[1755244591162,2.1547133,4641.0,4640.3,9.69202288]
[1755244591163,0.9021,4640.7,4640.3,9.69202288]
[1755244591361,3.0,4641.0,4640.3,9.69202288]
[1755244591362,0.9021,4640.6,4640.3,9.69202288]
[1755244591563,2.15467158,4641.1,4640.3,9.69202288]
[1755244591865,0.9021,4641.0,4640.3,9.69202288]
[1755244592251,2.15667158,4641.1,4640.3,9.69202288]
[1755244592441,0.9021,4641.0,4640.3,9.69202288]
[1755244592849,0.9021,4640.9,4640.3,9.69202288]
[1755244593047,0.9021,4640.8,4640.3,9.69202288]
[1755244593361,0.9021,4640.7,4640.4,2.15498335]
[1755244593563,0.9021,4640.6,4640.3,9.69202663]
[1755244593867,0.4545,4640.9,4640.5,0.55]
[1755244594164,0.4476,4641.0,4640.4,3.31654986]
[1755244594165,0.4476,4641.0,4640.6,2.17644269]
[1755244594662,0.4476,4641.0,4640.8,2.15480083]
[1755244594970,0.002,4641.1,4640.6,3.295]
[1755244595145,0.9041,4641.1,4640.6,3.295]
[1755244595346,0.4476,4641.0,4640.6,5.4498905]
[1755244595647,0.4565,4641.1,4640.9,2.15475446]
[1755244595836,0.4565,4641.1,4640.9,3.295]
[1755244595837,0.002,4641.1,4640.9,3.295]
[1755244596031,0.002,4641.1,4641.0,6.94670802]
[1755244597182,0.002,4641.1,4641.0,7.05470802]
[1755244597366,0.002,4641.1,4641.0,8.35965567]
[1755244609911,0.9041,4641.1,4641.0,4.89999999]
[1755244610720,0.002,4641.1,4641.0,7.05470802]
[1755244611324,1e-08,4641.1,4641.0,7.94560802]
[1755244611822,1e-08,4641.1,4641.0,3.70360803]
[1755244612121,1e-08,4641.1,4641.0,5.90807207]
[1755244613358,0.002,4642.5,4642.4,2.70405824]
[1755244613535,0.002,4642.5,4642.4,6.45225824]
[1755244613718,0.002,4642.5,4642.4,6.10705824]
[1755244615034,0.9431,4642.5,4642.4,6.10705824]
[1755244615633,0.9431,4642.5,4642.4,0.658]
[1755244616544,6.09711184,4642.5,4641.4,2.15448567]
[1755244616882,0.9411,4642.4,4642.1,0.108]
[1755244617310,0.9411,4642.3,4642.1,0.108]
[1755244617711,0.9411,4642.2,4642.1,0.108]
[1755244621712,3.9411,4642.2,4642.1,0.108]
[1755244621916,3.96126281,4642.2,4642.1,0.108]
[1755244622421,0.96126281,4642.2,4642.1,0.108]
[1755244622612,0.9411,4642.2,4642.1,0.108]
[1755244624247,0.96126281,4642.2,4642.1,0.108]